Cogmind - Beta 16.1 @@@ ROGUE MODE // 2026.03.18 @ 02:58:41 Player: rootmos Result: Destroyed by as-34960 with Assembled Blade Performance ------------- Evolutions (1) 500 Regions Visited (4) 800 Robots Destroyed (46) 230 Value Destroyed (1255) 1255 Prototype IDs (2) 40 Alien Tech Used (0) 0 Bonus (145) 145 TOTAL SCORE: 2970 Bonus ------- Follower Combat Kills 145 Cogmind --------- Core Integrity 0/400 Matter 300/300 Energy 100/100 System Corruption 0% Temperature Cool (0) Movement Core (100) Ox1 Location -9/Mines Parts ------- > --- POWER (1) -------- (None) > --- PROPULSION (3) --- (None) > --- UTILITY (3) ------ Small Storage Unit > --- WEAPON (2) ------- (None) > --- INVENTORY (8) ---- Improved Heat Sink Advanced Weight Redist. System EM Pulse Gun Particle Gun Heavy Assault Rifle Heavy Assault Rifle Improved Light Cannon Peak State ------------ > --- POWER ------------ Light Nuclear Core > --- PROPULSION ------- Light Treads Aluminum Leg Aluminum Leg > --- UTILITY ---------- Large Storage Unit Light Armor Plating Medium Armor Plating > --- WEAPON ----------- Improved EM Shotgun Improved Light Cannon > --- INVENTORY -------- Ion Engine Ion Engine Ion Engine Aluminum Leg Aluminum Leg Improved Heat Sink Small Storage Unit Large Battery Advanced Weight Redist. System Light Armor Plating EM Pulse Gun Heavy Assault Rifle Heavy Assault Rifle Mini Grenade Launcher [Rating: 17] Favorites ----------- Power Light Nuclear Core Engine Light Ion Engine Power Core Light Nuclear Core Propulsion Aluminum Leg Treads Light Treads Leg Aluminum Leg Utility Light Armor Plating Device Seismic Detector Storage Large Storage Unit Processor Targeting Computer Protection Light Armor Plating Weapon Assault Rifle Energy Gun Improved EM Shotgun Energy Cannon Beam Cannon Ballistic Gun Assault Rifle Ballistic Cannon Improved Light Cannon Build | -11 -10 -10 -9 -9 ------- Run | Yrd Mat Min Mat Min Slots Evolved 2 | . . . 2 . Power . | . . . . . Propulsion 1 | . . . 1 . Utility 1 | . . . 1 . Weapon . | . . . . . Parts Attached 44 | . 14 2 28 . Power 5 | . 3 1 1 . Engine 4 | . 3 . 1 . Core 1 | . . 1 . . Reactor . | . . . . . Propulsion 15 | . 2 . 13 . Treads 2 | . 2 . . . Leg 13 | . . . 13 . Wheel . | . . . . . Hover . | . . . . . Flight . | . . . . . Utility 12 | . 5 . 7 . Device 1 | . 1 . . . Storage 3 | . 1 . 2 . Processor 1 | . 1 . . . Hackware . | . . . . . Protection 7 | . 2 . 5 . Artifact . | . . . . . Weapon 12 | . 4 1 7 . Energy Gun 3 | . 2 . 1 . Energy Cannon 1 | . . 1 . . Ballistic Gun 5 | . 2 . 3 . Ballistic Cannon 3 | . . . 3 . Launcher . | . . . . . Special Weapon . | . . . . . Impact Weapon . | . . . . . Slashing Weapon . | . . . . . Piercing Weapon . | . . . . . Special Melee Weapon . | . . . . . Unidentified Prototypes 2 | . 1 . 1 . Parts Lost 12 | . . . 3 9 Power 2 | . . . 1 1 Propulsion 5 | . . . 1 4 Utility 3 | . . . 1 2 Weapon 2 | . . . . 2 Highest Loss Streak 8 | . . . 1 8 To Critical Strikes . | . . . . . Average Backups 10 | 6 11 15 9 7 Power 2 | 1 4 4 . . Propulsion 1 | 4 2 2 . . Utility 2 | . 1 2 3 2 Weapon 4 | 1 3 6 4 5 Tool/Special . | . . . . . Unused Backups 13 | . . 1 6 6 Power 3 | . . 1 2 . Propulsion . | . . . . . Utility 3 | . . . 1 2 Weapon 7 | . . . 3 4 Tool/Special . | . . . . . Average Slot Usage (%) 97 | . 99 100 97 71 Engine 8 | . 14 9 5 6 Core 3 | . . 4 5 . Treads 14 | . 27 28 4 . Leg 15 | . . . 26 22 Device 1 | . 7 . . . Storage 12 | . 14 14 11 11 Protection 15 | . 3 14 21 17 Energy Gun 7 | . 9 14 4 7 Ballistic Gun 11 | . 18 14 7 . Ballistic Cannon 4 | . . . 8 6 Peak Build Rating 17 | 6 10 12 17 15 Average Rating 12 | 6 8 10 14 10 On Entrance 9 | 6 6 10 12 15 Avg Prop Armor Cover (%) 3 | . . . 3 . Naked Turns . | . . . . . Heaviest Build 41 | 14 31 33 41 22 Greatest Support 40 | 20 40 40 40 30 Greatest Overweight (x) 2 | . . . 2 1 Average Overweight (x) . | . . . . . Largest Inventory Capacity 15 | 8 15 15 15 8 Average Capacity 11 | 8 14 15 9 8 Most Carried 15 | 6 15 15 15 8 Average Carried 10 | 6 11 14 9 7 Final Capacity 15 | 8 15 15 8 8 Final Carried 15 | 6 15 15 8 7 Class Distribution -------------------- 72% | Mutant 16% | Scavenger-Mutant 10% | Scientist-Mutant Dominant Class ---------------- Mutant | -10/Materials Mutant | -10/Mines Mutant | -9/Materials Scavenger-Mutant | -9/Mines Resources | -11 -10 -10 -9 -9 ----------- Run | Yrd Mat Min Mat Min Matter Collected 1385 | 200 288 75 822 . Remotely . | . . . . . Salvage Created 1503 | . 425 . 1065 13 Parts 102 | . 31 . 71 . Haulers Intercepted . | . . . . . Recyclers Shooed 1 | . . 1 . . Parts Field Recycled . | . . . . . Retrieved Matter . | . . . . . Parts Self-Destructed . | . . . . . Prevented . | . . . . . Parts Restored . | . . . . . Kills | -11 -10 -10 -9 -9 ------- Run | Yrd Mat Min Mat Min Combat Hostiles Destroyed 44 | . 12 . 31 1 Guns 26 | . 10 . 15 1 Cannons 16 | . . . 16 . AOE 2 | . 2 . . . Classes Destroyed 8 | . 4 . 3 1 Worker 1 | . 1 . . . Builder 1 | . . . 1 . Recycler 1 | . 1 . . . Swarmer 15 | . 8 . 7 . Grunt 20 | . 4 . 16 . Brawler 1 | . . . 1 . Sentry 7 | . . . 7 . Assembled 1 | . . . . 1 Best Kill Streak 7 | . 3 . 7 1 Combat Bots Only 6 | . 2 . 6 1 Max Kills in Single Turn 2 | . 1 . 2 1 Gunslinging . | . . . . . Exploded 1 | . 1 . . . Melee . | . . . . . Uniques/NPCs Destroyed . | . . . . . Combat | -11 -10 -10 -9 -9 -------- Run | Yrd Mat Min Mat Min Hostile Shots Fired 230 | . 83 . 113 34 Missed 59 | . 26 . 29 4 Hits 171 | . 57 . 84 30 Melee 1 | . . . . 1 Projectile 170 | . 57 . 84 29 AOE 18 | . . . . 18 Critical Strikes 2 | . 1 . . 1 Actively Blocked 1 | . . . . 1 Part Disruptions 1 | . . . . 1 Damage Taken 2462 | . 563 . 1021 878 Core 567 | . 149 . 92 326 Absorbed by Shields . | . . . . . Redirected to Shielding 51 | . . . 13 38 Core Remaining (%) 70 | 100 . 40 . . Volleys Fired 112 | . 39 1 69 3 Largest 2 | . 2 2 2 2 Hottest 94 | . 65 65 94 94 Shots Fired 219 | . 78 2 133 6 Gun 162 | . 78 2 79 3 Cannon 57 | . . . 54 3 Launcher . | . . . . . Special . | . . . . . Kinetic 165 | . 66 1 95 3 Thermal 28 | . . . 25 3 Explosive . | . . . . . Electromagnetic 26 | . 12 1 13 . Robot Hit Streak 12 | . 6 2 12 1 Robot Miss Streak 5 | . 5 1 2 2 Penetration Max . | . . . . . Secondary Targets . | . . . . . Shots Hit Robots 134 | . 44 2 86 2 Core Hits 65 | . 17 . 47 1 Critical Kills . | . . . . . Critical Parts Destroyed . | . . . . . Critical Strikes 5 | . . . 5 . Burn 1 | . . . 1 . Blast 4 | . . . 4 . Melee Attacks . | . . . . . Impact . | . . . . . Slashing . | . . . . . Piercing . | . . . . . Sneak Attacks . | . . . . . Combat Hostiles . | . . . . . Follow-up Attacks . | . . . . . Damage Inflicted 2417 | . 709 29 1635 44 Guns 1550 | . 624 26 880 20 Cannons 747 | . . . 723 24 Explosions 85 | . 85 . . . Melee . | . . . . . Ramming 35 | . . 3 32 . Kinetic 1525 | . 429 14 1058 24 Thermal 443 | . 85 . 338 20 Explosive . | . . . . . Electromagnetic 414 | . 195 12 207 . Impact . | . . . . . Slashing . | . . . . . Piercing . | . . . . . Highest Corruption . | . . . . . Average Corruption . | . . . . . Corruption Purged . | . . . . . Corruption Blocked . | . . . . . Overload Shots . | . . . . . Overflow Damage 2 | . . . 2 . Projectiles 2 | . . . 2 . Explosions . | . . . . . Melee . | . . . . . Knockbacks 4 | . . . 4 . Impact . | . . . . . Kinetic 4 | . . . 4 . Secondary . | . . . . . Self-Inflicted Damage 50 | . 50 . . . Shots 2 | . 2 . . . Rammed 3 | . . 2 1 . Targets Rammed 8 | . . 2 6 . Kicked 5 | . . . 5 . Crushed . | . . . . . Highest Temperature 334 | . 63 12 334 60 Average Temperature 60 | . 19 8 69 30 Received Heat Transfer 579 | . 72 . 387 120 Effects 1 | . . . 1 . Energy Bleed 1 | . . . 1 . Siege Activations . | . . . . . Martial Activations . | . . . . . Shielding Activations . | . . . . . Robots Disrupted . | . . . . . Combat Hostiles . | . . . . . Robots Corrupted . | . . . . . Combat Hostiles . | . . . . . Parts Fried 2 | . 1 . 1 . Impact Corruptions . | . . . . . Robots Melted . | . . . . . Combat Hostiles . | . . . . . Parts Melted . | . . . . . Heat Transferred 840 | . 100 . 703 37 Parts Sabotaged . | . . . . . Parts Stolen . | . . . . . Parts Stripped . | . . . . . Power Chain Reactions 2 | . 2 . . . Alert | -11 -10 -10 -9 -9 ------- Run | Yrd Mat Min Mat Min Maximum Alert Level 1 | . . . 1 . Low Security (%) 86 | 100 100 100 76 100 Level 1 13 | . . . 23 . Level 2 . | . . . . . Level 3 . | . . . . . Level 4 . | . . . . . Level 5 . | . . . . . High Security . | . . . . . Max Security . | . . . . . Peak Influence 365 | . 153 68 365 172 Initial 137 | . . 27 . 137 Average 74 | . 49 7 106 100 Influence Increases 1464 | . 379 68 942 75 Destroy 0b10 Robot/C 960 | . 240 40 620 60 Destroy 0b10 Robot/NC 15 | . 10 . 5 . Destroy Leader 240 | . 50 10 170 10 Allied During Kill 8 | . . 3 . 5 Successful Hack 12 | . 8 . 4 . Disable Machine 15 | . 15 . . . Destroy Structure 19 | . 11 . 8 . Partial Spotted 15 | . 15 . . . Lose Combat Pursuer 180 | . 30 15 135 . Influence Decreases 1432 | . 308 139 589 396 Entered New Map 260 | . . 44 . 216 Time Decay 941 | . 308 95 488 50 Lost Part 120 | . . . 30 90 Lost Ally 40 | . . . . 40 Purge Threat 71 | . . . 71 . Squads Dispatched 8 | . 4 . 4 . Investigation 2 | . . . 2 . Extermination . | . . . . . Reinforcement 6 | . 4 . 2 . Assault . | . . . . . Garrison . | . . . . . Intercept . | . . . . . Searches Triggered . | . . . . . Construction Impeded . | . . . . . Haulers Reinforced . | . . . . . Active Scanning Responses . | . . . . . Cargo Convoy Interrupts . | . . . . . Stealth | -11 -10 -10 -9 -9 --------- Run | Yrd Mat Min Mat Min Distress Signals 8 | . 3 . 5 . Communications Jammed . | . . . . . Distress Signals . | . . . . . Times Spotted 95 | . 23 2 50 20 Peak Tracking Total 14 | . 5 2 7 14 Tactical Retreats 11 | . 2 1 7 1 Traps | -11 -10 -10 -9 -9 ------- Run | Yrd Mat Min Mat Min Traps Triggered 6 | . 1 . 5 . Indirectly . | . . . . . Trap Hack Attempts . | . . . . . Triggered . | . . . . . Disarmed . | . . . . . Reprogrammed . | . . . . . Reused . | . . . . . Traps Extracted . | . . . . . Installed . | . . . . . Triggered . | . . . . . Machines | -11 -10 -10 -9 -9 ---------- Run | Yrd Mat Min Mat Min Machines Disabled 1 | . 1 . . . Max in Single Turn 1 | . 1 . . . Machines Repaired . | . . . . . Machines Dismantled . | . . . . . Machines Sabotaged . | . . . . . Overloaded Fab Kills . | . . . . . Hacking | -11 -10 -10 -9 -9 --------- Run | Yrd Mat Min Mat Min Machines Accessed 9 | . 2 . 7 . Terminals 6 | . 2 . 4 . Fabricators . | . . . . . Repair Stations 1 | . . . 1 . Recycling Units 1 | . . . 1 . Scanalyzers 1 | . . . 1 . Garrison Access . | . . . . . Total Hacks 20 | . 5 . 15 . Successful 15 | . 5 . 10 . Failed 5 | . . . 5 . Catastrophic . | . . . . . Database Lockouts . | . . . . . Manual 1 | . 1 . . . Terminals 12 | . 5 . 7 . Fabricators . | . . . . . Repair Stations 1 | . . . 1 . Recycling Units 1 | . . . 1 . Scanalyzers 6 | . . . 6 . Garrison Access . | . . . . . Terminal Hacks 8 | . 5 . 3 . Record 3 | . 2 . 1 . Level Access Points 1 | . 1 . . . Emergency Access Points 1 | . 1 . . . Alert Level 2 | . 1 . 1 . Unreport Threat 1 | . . . 1 . Fabricator Hacks . | . . . . . Repair Station Hacks . | . . . . . Recycling Unit Hacks 1 | . . . 1 . Report Inventory 1 | . . . 1 . Scanalyzer 6 | . . . 6 . Retrieve Study 6 | . . . 6 . Garrison Access Hacks . | . . . . . Unauthorized Hacks . | . . . . . Terminals . | . . . . . Fabricators . | . . . . . Repair Stations . | . . . . . Recycling Units . | . . . . . Scanalyzers . | . . . . . Garrison Access . | . . . . . Data Cores Recovered . | . . . . . Used . | . . . . . Hacking Detections 2 | . . . 2 . Full Trace Events 1 | . . . 1 . Feedback Events . | . . . . . Feedback Blocked . | . . . . . Robot Schematics Acquired . | . . . . . Robots Built . | . . . . . Authchips . | . . . . . Time . | . . . . . Total Robot Build Rating . | . . . . . Part Schematics Acquired . | . . . . . Parts Built . | . . . . . Authchips . | . . . . . Time . | . . . . . Total Part Build Rating . | . . . . . Part Studies Acquired 6 | . . . 6 . Parts Repaired . | . . . . . Time . | . . . . . Parts Recycled . | . . . . . Recycled Matter . | . . . . . Retrieved Matter . | . . . . . Retrieved Components . | . . . . . Parts Scanalyzed . | . . . . . Part Schematics Acquired . | . . . . . Parts Damaged . | . . . . . Bothacking | -11 -10 -10 -9 -9 ------------ Run | Yrd Mat Min Mat Min Used RIF Installer . | . . . . . Robots Hacked . | . . . . . Non-combat . | . . . . . Combat . | . . . . . Robot Hacks Applied . | . . . . . Relay Couplers Released . | . . . . . Fabnet Peak Effective % . | . . . . . Robots Rewired . | . . . . . Allies Hacked . | . . . . . Hacks Repelled . | . . . . . Allies | -11 -10 -10 -9 -9 -------- Run | Yrd Mat Min Mat Min Total Allies 3 | . . 1 . 2 Largest Group 2 | . . 1 . 2 Highest-Rated Group 45 | . . 31 . 45 Highest-Rated Ally 31 | . . 31 . 31 Total Orders . | . . . . . Ally Attacks 21 | . . 7 . 14 Total Damage 318 | . . 86 . 232 Kills 5 | . . 2 . 3 Allies Corrupted . | . . . . . Allies Melted . | . . . . . Intel | -11 -10 -10 -9 -9 ------- Run | Yrd Mat Min Mat Min Active Infowar (turns) 526 | . 526 . . . Seismic 526 | . 526 . . . Robot Analysis Total . | . . . . . Derelict Logs Recovered 6 | . . 3 . 3 Drone Launches . | . . . . . Drone Recoveries . | . . . . . Exploration | -11 -10 -10 -9 -9 ------------- Run | Yrd Mat Min Mat Min Turns Passed 4277 | 3 1012 809 2338 115 Spaces Moved 2677 | 3 506 490 1586 92 Core 39 | . . . . 39 Treads 1207 | . 500 490 217 . Legs 1431 | 3 6 . 1369 53 Wheels . | . . . . . Hover . | . . . . . Flight . | . . . . . Fastest Speed 100 | 120 120 160 105 100 Average Speed 133 | 120 159 160 118 103 Slowest Speed 320 | 120 160 160 320 175 Overloaded Moves . | . . . . . Propulsion Burnouts . | . . . . . Robots Hopped . | . . . . . Potential Cave-ins . | . . . . . Cave-ins Triggered . | . . . . . Exploration Rate (%) 56 | 2 92 88 76 24 Regions Visited 4 Branch Regions 2 Pre-discovered Areas . | . . . . . Known Exits Taken 1 | . . 1 . . Unknown Exits Taken 3 | 1 1 . 1 . Scrap Searched . | . . . . . Spaces Dug 1 | . . . 1 . Terrain Destroyed 11 | . 7 . 4 . Melee . | . . . . . Projectile 4 | . . . 4 . AOE 7 | . 7 . . . Terrain Rammed . | . . . . . Walls Destroyed . | . . . . . Machines Disabled . | . . . . . Actions | -11 -10 -10 -9 -9 --------- Run | Yrd Mat Min Mat Min Total 3156 | 2 624 512 1913 105 Wait 237 | . 47 12 169 9 Move 2673 | 2 505 489 1585 92 Hop . | . . . . . Pick Up 18 | . 7 2 9 . Fast Attach 12 | . 2 . 10 . Attach 7 | . . . 6 1 Detach 2 | . 1 . 1 . Swap 50 | . 20 3 27 . Drop 37 | . 3 3 31 . Fire 112 | . 39 1 69 3 Melee . | . . . . . Ram . | . . . . . Kick 5 | . . . 5 . Crush 3 | . . 2 1 . Escape Stasis . | . . . . . Rewire . | . . . . . Trap . | . . . . . Miscellaneous . | . . . . . Route ------- -11/Scrapyard -10/Materials (discovered 5 exits: *Mat x3 / [*Min x2]) -10/Mines (discovered 2 exits: *Mat x2) -9/Materials (discovered 6 exits: [*Mat x2] / [*Min x2] / [*Sto x2]) -9/Mines History --------- Turn | Location | Event 1 | -11/Scrapyard | Discovered new exit (range 3) 4 | -11/Scrapyard | Entered Materials 312 | -10/Materials | Build established: Mutant 360 | -10/Materials | Discovered new exit (range 10) 488 | -10/Materials | Discovered new exit (range 5) 564 | -10/Materials | Identified exit to Materials 750 | -10/Materials | Core integrity fell below 50% 1000 | -10/Materials | Discovered new exit (range 11) 1016 | -10/Materials | Entered Mines 1021 | -10/Mines | Met a Derelict bent on vengeance 1045 | -10/Mines | Discovered exit to Materials (range 9) 1092 | -10/Mines | Discovered exit to Materials (range 7) 1212 | -10/Mines | Learned Materials stockpile data 1328 | -10/Mines | Learned Materials terminal intel 1338 | -10/Mines | Received a Mining Laser from a helpful Derelict 1825 | -10/Mines | Entered Materials 1825 | -9/Materials | Evolved 2 slots: Propulsion x1, Utility x1 1825 | -9/Materials | Discovered new exit (range 15) 1827 | -9/Materials | Loaded intel: 12 terminal locations 2210 | -9/Materials | Discovered new exit (range 5) 2620 | -9/Materials | Discovered new exit (range 5) 3099 | -9/Materials | Discovered new exit (range 5) 3177 | -9/Materials | Discovered new exit (range 9) 3337 | -9/Materials | Build established: Scientist-Mutant 3754 | -9/Materials | Discovered new exit (range 16) 4104 | -9/Materials | Build established: Scavenger-Mutant 4163 | -9/Materials | Entered Mines 4164 | -9/Mines | Assembled infested the area 4169 | -9/Mines | Assisted by a Guerilla fighting off Assembled 4233 | -9/Mines | Core integrity fell below 50% 4258 | -9/Mines | Lost 3 allies 4268 | -9/Mines | Core integrity fell below 20% 4269 | -9/Mines | Lost 8 parts (1p4n1u2w) 4276 | -9/Mines | Learned location of 1 exit from Materials 4277 | -9/Mines | Learned Materials stockpile data 4278 | -9/Mines | Destroyed by as-34960 with Assembled Blade Last Messages --------------- 04232_ U-05 Engineer builds a Wall. 04234_ The unstable cave ceiling collapses. 04235_ Aluminum Leg+ destroyed. 04238_ Adv. Beam Rifle destroyed. 04239_ as-90780 destroyed. 04241_ The unstable cave ceiling collapses. 04267_ as-16668 destroyed. 04269_ as-43136 destroyed. 04269_ as-89095 destroyed. 04270_ as-73563 destroyed. 04270_ D-53 Grenadier destroyed. 04270_ as-65632 destroyed. 04270_ D-53 Grenadier destroyed. 04271_ The unstable cave ceiling collapses. 04272_ Core Shielding destroyed. 04273_ The unstable cave ceiling collapses. 04276_ Acquired derelict log, extracted data. Data stored: Materials exits (x1). 04277_ Acquired derelict log, extracted data. Data stored: Materials stockpile data. Map ----- +----------------------------------------------------+ | ?????????????????????????????# []= | | ?????????????????????????????# * # | | ?????????????????????????????# # | | ?????????????????????????????# % | | ????????????????????????# ## # | | ????????????????????????# !%= # | | ????????????????????????## #### # # # | | ??????????????????????????##### # # | | ??????????????????????????# ### #### | | ??????????????????????????# #####?###?### | | ??????????????????????????# ?????##### | | ??????????????????????????# ?????# | | ??????????????????????????# #????# | | ??????????????????????????# #???# | | ?????????????????????????? ##?# | | ?????????????????????????? #?## ## ## | | ??????????????????????????# #??# #?##? | | ??????????????????????????# ##?# #???? | | ??????????????????????????# ### #???? | | ??????????????????????????# ## ##??? | | ?????????????????????????## # #??? | | ??????????????????????#### ## ##?? | | ?????????????????????## ## #?? | | ????????????????????## ## #?? | | ?????????# ########## a < % ##?? | | ?????????# @ =% ##??? | | ?????????# aa = #???? | | ?????????##########a #???? | | ?????????????###### a #???? | | ?????? * ## #???? | | ?????? % ####### #????? | | ?????????#############?????? #????? | | ???????????????????????????? #????? | | ???????????????????????????? % #????? | | ??????????????????????????? ##????? | | ??????????????????????????? #?????? | | ?????????????????????????? ##?????? | | ?????????????????????????###### #??????? | | ??????????????????????????????# #??????? | | ??????????????????????????????# #??????? | | ??????????????????????????????? #??????? | | ??????????????????????????????? #??????? | | ????????????????????????????????????????? | | ????????????????????????????????????????? | | ????????????????????????????????????????? | | ????????????????????????????????????????? | | ????????????????????????????????????????? | | | | | | | +----------------------------------------------------+ Best States ------------- Heat Dissipation 28 Energy Generation 14 Energy Capacity 265 Matter Stores 300 Matter Capacity 300 Sight Range 16 Terrain Scan Density 10 Armor Coverage 375 Core Shielding 20 Evasion (%) 55 Targeting Accuracy 5 Recoil Reduction 2 Item Schematics ----------------- None Robot Schematics ------------------ None Fabricated ------------ Nothing Repaired ---------- Nothing Studied --------- Imp. Light Cannon | -9/Materials | Hacked Hvy. Assault Rifle | -9/Materials | Hacked Aluminum Leg | -9/Materials | Hacked EM Pulse Gun | -9/Materials | Hacked Imp. Ion Engine | -9/Materials | Hacked Particle Gun | -9/Materials | Hacked Alien Tech Used ----------------- None Achievements -------------- None Challenges ------------ None Game ------ Seed VampiricNeutrinoBank Manual? 0 Play Time 00:49:25 Cumulative 120.6 hours Start 2026.03.16 @ 20:25:19 End 2026.03.18 @ 02:58:41 Sessions 5 Manual Loads 0 Difficulty Rogue Special Mode None Game No. 66 Rogue 31 Adventurer 0 Explorer 35 Win Type - Total 1 Types 1/0/0/0/0/0/0/0/0/0 Lore% 32 Gallery% 35 Achievement% 28 Wizard Run 0 Options --------- Layout 2 ASCII 1 Keyboard 1 Movement Vi Keybinds 1 Fullscreen 2 Font 24/Smallcaps Map View 50x49 Zoom Use 0% Tactical HUD 1 Map Filters NONE Filters NONE Steam 0 RUN: ffa5d307-febd-4329-8350-afe637e407b7